{"text_format":"1","workbook":"xlsx","n_sheets":6,"sheets":["Monochromatic RGB Values","Monochromatic Spectra","PCMFs","RGB Values","Spectra","Deviation"],"not_rendered":{"charts":3,"images":0,"macros":1,"external_links":0,"defined_names":0,"comments":0,"pivot_tables":0},"unopened":[],"bounds":{"document_bytes":16777216,"sheet_cells":100000,"rows_first":2000,"rows_last":500,"rows_between":2000,"halvings":0,"cell_chars":16384,"cell_head_chars":4096},"cells_cut":0,"cells_raw":0,"read":"whole","date_system":"1900"}

{"sheet":"Monochromatic RGB Values","index":0,"n_rows":41,"n_cols":15,"rows_kept":41,"cut":false,"hidden":false,"merged":[]}
[null,null,null,null,null,null,"R","G","B",null,"norm. values",null,"R","G","B"]
[null,null,null,null,null,390,null,null,null,null,null,390,{"$f":"(G2-$G$35)/($I$38*$H$41)","v":{"$error":"#DIV/0!"}},{"$f":"(H2-$H$35)/($H$41*$I$39)","v":{"$error":"#DIV/0!"}},{"$f":"(I2-$I$35)/($H$41*$I$40)","v":{"$error":"#DIV/0!"}}]
[null,null,null,null,null,400,null,null,null,null,null,400,{"$error":"#DIV/0!"},{"$error":"#DIV/0!"},{"$error":"#DIV/0!"}]
[null,null,null,null,null,410,null,null,null,null,null,410,{"$error":"#DIV/0!"},{"$error":"#DIV/0!"},{"$error":"#DIV/0!"}]
[null,null,null,null,null,420,null,null,null,null,null,420,{"$error":"#DIV/0!"},{"$error":"#DIV/0!"},{"$error":"#DIV/0!"}]
[null,null,null,null,null,430,null,null,null,null,null,430,{"$error":"#DIV/0!"},{"$error":"#DIV/0!"},{"$error":"#DIV/0!"}]
[null,null,null,null,null,440,null,null,null,null,null,440,{"$error":"#DIV/0!"},{"$error":"#DIV/0!"},{"$error":"#DIV/0!"}]
[null,null,null,null,null,450,null,null,null,null,null,450,{"$error":"#DIV/0!"},{"$error":"#DIV/0!"},{"$error":"#DIV/0!"}]
[null,null,null,null,null,460,null,null,null,null,null,460,{"$error":"#DIV/0!"},{"$error":"#DIV/0!"},{"$error":"#DIV/0!"}]
[null,null,null,null,null,470,null,null,null,null,null,470,{"$error":"#DIV/0!"},{"$error":"#DIV/0!"},{"$error":"#DIV/0!"}]
[null,null,null,null,null,480,null,null,null,null,null,480,{"$error":"#DIV/0!"},{"$error":"#DIV/0!"},{"$error":"#DIV/0!"}]
[null,null,null,null,null,490,null,null,null,null,null,490,{"$error":"#DIV/0!"},{"$error":"#DIV/0!"},{"$error":"#DIV/0!"}]
[null,null,null,null,null,500,null,null,null,null,null,500,{"$error":"#DIV/0!"},{"$error":"#DIV/0!"},{"$error":"#DIV/0!"}]
[null,null,null,null,null,510,null,null,null,null,null,510,{"$error":"#DIV/0!"},{"$error":"#DIV/0!"},{"$error":"#DIV/0!"}]
[null,null,null,null,null,520,null,null,null,null,null,520,{"$error":"#DIV/0!"},{"$error":"#DIV/0!"},{"$error":"#DIV/0!"}]
[null,null,null,null,null,530,null,null,null,null,null,530,{"$error":"#DIV/0!"},{"$error":"#DIV/0!"},{"$error":"#DIV/0!"}]
[null,null,null,null,null,540,null,null,null,null,null,540,{"$error":"#DIV/0!"},{"$error":"#DIV/0!"},{"$error":"#DIV/0!"}]
[null,null,null,null,null,550,null,null,null,null,null,550,{"$error":"#DIV/0!"},{"$error":"#DIV/0!"},{"$error":"#DIV/0!"}]
[null,null,null,null,null,560,null,null,null,null,null,560,{"$error":"#DIV/0!"},{"$error":"#DIV/0!"},{"$error":"#DIV/0!"}]
[null,null,null,null,null,570,null,null,null,null,null,570,{"$error":"#DIV/0!"},{"$error":"#DIV/0!"},{"$error":"#DIV/0!"}]
[null,null,null,null,null,580,null,null,null,null,null,580,{"$error":"#DIV/0!"},{"$error":"#DIV/0!"},{"$error":"#DIV/0!"}]
[null,null,null,null,null,590,null,null,null,null,null,590,{"$error":"#DIV/0!"},{"$error":"#DIV/0!"},{"$error":"#DIV/0!"}]
[null,null,null,null,null,600,null,null,null,null,null,600,{"$error":"#DIV/0!"},{"$error":"#DIV/0!"},{"$error":"#DIV/0!"}]
[null,null,null,null,null,610,null,null,null,null,null,610,{"$error":"#DIV/0!"},{"$error":"#DIV/0!"},{"$error":"#DIV/0!"}]
[null,null,null,null,null,620,null,null,null,null,null,620,{"$error":"#DIV/0!"},{"$error":"#DIV/0!"},{"$error":"#DIV/0!"}]
[null,null,null,null,null,630,null,null,null,null,null,630,{"$error":"#DIV/0!"},{"$error":"#DIV/0!"},{"$error":"#DIV/0!"}]
[null,null,null,null,null,640,null,null,null,null,null,640,{"$error":"#DIV/0!"},{"$error":"#DIV/0!"},{"$error":"#DIV/0!"}]
[null,null,null,null,null,650,null,null,null,null,null,650,{"$error":"#DIV/0!"},{"$error":"#DIV/0!"},{"$error":"#DIV/0!"}]
[null,null,null,null,null,660,null,null,null,null,null,660,{"$error":"#DIV/0!"},{"$error":"#DIV/0!"},{"$error":"#DIV/0!"}]
[null,null,null,null,null,670,null,null,null,null,null,670,{"$error":"#DIV/0!"},{"$error":"#DIV/0!"},{"$error":"#DIV/0!"}]
[null,null,null,null,null,680,null,null,null,null,null,680,{"$error":"#DIV/0!"},{"$error":"#DIV/0!"},{"$error":"#DIV/0!"}]
[null,null,null,null,null,690,null,null,null,null,null,690,{"$error":"#DIV/0!"},{"$error":"#DIV/0!"},{"$error":"#DIV/0!"}]
[null,null,null,null,null,700,null,null,null,null,null,700,{"$error":"#DIV/0!"},{"$error":"#DIV/0!"},{"$error":"#DIV/0!"}]
[null,null,null,null,null,710,null,null,null,null,null,710,{"$error":"#DIV/0!"},{"$error":"#DIV/0!"},{"$error":"#DIV/0!"}]
[null,null,null,null,null,"Background"]
[]
[null,null,null,null,null,"Camera Settings"]
[null,null,null,null,null,"White Point:","R:",null,{"$f":"H38/H39","v":{"$error":"#DIV/0!"}}]
[null,null,null,null,null,null,"G:",null,{"$f":"H39/H39","v":{"$error":"#DIV/0!"}}]
[null,null,null,null,null,null,"B:",null,{"$f":"H40/H39","v":{"$error":"#DIV/0!"}}]
[null,null,null,null,null,"Color depth (Bit)",16,{"$f":"2^G41-1","v":65535}]

{"sheet":"Monochromatic Spectra","index":1,"n_rows":36,"n_cols":34,"rows_kept":36,"cut":false,"hidden":false,"merged":[]}
[null,"Spectra 1","Spectra 2","Spectra 3","Spectra 4","Spectra 5","Spectra 6","Spectra 7","Spectra 8","Spectra 9","Spectra 10","Spectra 11","Spectra 12","Spectra 13","Spectra 14","Spectra 15","Spectra 16","Spectra 17","Spectra 18","Spectra 19","Spectra 20","Spectra 21","Spectra 22","Spectra 23","Spectra 24","Spectra 25","Spectra 26","Spectra 27","Spectra 28","Spectra 29","Spectra 30","Spectra 31","Spectra 32","Spectra 33"]
["Wavelength","Intensity","Intensity","Intensity","Intensity","Intensity","Intensity","Intensity","Intensity","Intensity","Intensity","Intensity","Intensity","Intensity","Intensity","Intensity","Intensity","Intensity","Intensity","Intensity","Intensity","Intensity","Intensity","Intensity","Intensity","Intensity","Intensity","Intensity","Intensity","Intensity","Intensity","Intensity","Intensity","Intensity"]
["nm","a.u.","a.u.","a.u.","a.u.","a.u.","a.u.","a.u.","a.u.","a.u.","a.u.","a.u.","a.u.","a.u.","a.u.","a.u.","a.u.","a.u.","a.u.","a.u.","a.u.","a.u.","a.u.","a.u.","a.u.","a.u.","a.u.","a.u.","a.u.","a.u.","a.u.","a.u.","a.u.","a.u."]
[390]
[400]
[410]
[420]
[430]
[440]
[450]
[460]
[470]
[480]
[490]
[500]
[510]
[520]
[530]
[540]
[550]
[560]
[570]
[580]
[590]
[600]
[610]
[620]
[630]
[640]
[650]
[660]
[670]
[680]
[690]
[700]
[710]

{"sheet":"PCMFs","index":2,"n_rows":36,"n_cols":49,"rows_kept":36,"cut":false,"hidden":false,"merged":[]}
["Normalised Values from sheet \"RGB Values\"",null,null,null,null,"inverted and transposed Spectra are filled in automaticly",null,null,null,null,null,null,null,null,null,null,null,null,null,null,null,null,null,null,null,null,null,null,null,null,null,null,null,null,null,null,null,null,null,null,null,"Pseudo color matching functions",null,null,null,"relativ"]
[null,null,null,null,null,null,"Matrix (CT)-1"]
[null,"R","G","B",null,null,null,null,null,null,null,null,null,null,null,null,null,null,null,null,null,null,null,null,null,null,null,null,null,null,null,null,null,null,null,null,null,null,null,null,null,"R","G","B",null,null,"R","G","B"]
[390,{"$f":"'Monochromatic RGB Values'!M2","v":{"$error":"#DIV/0!"}},{"$f":"'Monochromatic RGB Values'!N2","v":{"$error":"#DIV/0!"}},{"$f":"'Monochromatic RGB Values'!O2","v":{"$error":"#DIV/0!"}},null,null,{"$f":"MINVERSE(TRANSPOSE('Monochromatic Spectra'!B4:AH36))","v":{"$error":"#VALUE!"}},{"$error":"#VALUE!"},{"$error":"#VALUE!"},{"$error":"#VALUE!"},{"$error":"#VALUE!"},{"$error":"#VALUE!"},{"$error":"#VALUE!"},{"$error":"#VALUE!"},{"$error":"#VALUE!"},{"$error":"#VALUE!"},{"$error":"#VALUE!"},{"$error":"#VALUE!"},{"$error":"#VALUE!"},{"$error":"#VALUE!"},{"$error":"#VALUE!"},{"$error":"#VALUE!"},{"$error":"#VALUE!"},{"$error":"#VALUE!"},{"$error":"#VALUE!"},{"$error":"#VALUE!"},{"$error":"#VALUE!"},{"$error":"#VALUE!"},{"$error":"#VALUE!"},{"$error":"#VALUE!"},{"$error":"#VALUE!"},{"$error":"#VALUE!"},{"$error":"#VALUE!"},{"$error":"#VALUE!"},{"$error":"#VALUE!"},{"$error":"#VALUE!"},{"$error":"#VALUE!"},{"$error":"#VALUE!"},{"$error":"#VALUE!"},null,390,{"$f":"MMULT(G4:AM36,B4:B36)","v":{"$error":"#VALUE!"}},{"$f":"MMULT(G4:AM36,C4:C36)","v":{"$error":"#VALUE!"}},{"$f":"MMULT(G4:AM36,D4:D36)","v":{"$error":"#VALUE!"}},null,390,{"$f":"AP4/MAX($AP$4:$AR$36)","v":{"$error":"#VALUE!"}},{"$f":"AQ4/MAX($AP$4:$AR$36)","v":{"$error":"#VALUE!"}},{"$f":"AR4/MAX($AP$4:$AR$36)","v":{"$error":"#VALUE!"}}]
[400,{"$f":"'Monochromatic RGB Values'!M3","v":{"$error":"#DIV/0!"}},{"$f":"'Monochromatic RGB Values'!N3","v":{"$error":"#DIV/0!"}},{"$f":"'Monochromatic RGB Values'!O3","v":{"$error":"#DIV/0!"}},null,null,{"$error":"#VALUE!"},{"$error":"#VALUE!"},{"$error":"#VALUE!"},{"$error":"#VALUE!"},{"$error":"#VALUE!"},{"$error":"#VALUE!"},{"$error":"#VALUE!"},{"$error":"#VALUE!"},{"$error":"#VALUE!"},{"$error":"#VALUE!"},{"$error":"#VALUE!"},{"$error":"#VALUE!"},{"$error":"#VALUE!"},{"$error":"#VALUE!"},{"$error":"#VALUE!"},{"$error":"#VALUE!"},{"$error":"#VALUE!"},{"$error":"#VALUE!"},{"$error":"#VALUE!"},{"$error":"#VALUE!"},{"$error":"#VALUE!"},{"$error":"#VALUE!"},{"$error":"#VALUE!"},{"$error":"#VALUE!"},{"$error":"#VALUE!"},{"$error":"#VALUE!"},{"$error":"#VALUE!"},{"$error":"#VALUE!"},{"$error":"#VALUE!"},{"$error":"#VALUE!"},{"$error":"#VALUE!"},{"$error":"#VALUE!"},{"$error":"#VALUE!"},null,400,{"$error":"#VALUE!"},{"$error":"#VALUE!"},{"$error":"#VALUE!"},null,400,{"$error":"#VALUE!"},{"$error":"#VALUE!"},{"$error":"#VALUE!"}]
[410,{"$f":"'Monochromatic RGB Values'!M4","v":{"$error":"#DIV/0!"}},{"$f":"'Monochromatic RGB Values'!N4","v":{"$error":"#DIV/0!"}},{"$f":"'Monochromatic RGB Values'!O4","v":{"$error":"#DIV/0!"}},null,null,{"$error":"#VALUE!"},{"$error":"#VALUE!"},{"$error":"#VALUE!"},{"$error":"#VALUE!"},{"$error":"#VALUE!"},{"$error":"#VALUE!"},{"$error":"#VALUE!"},{"$error":"#VALUE!"},{"$error":"#VALUE!"},{"$error":"#VALUE!"},{"$error":"#VALUE!"},{"$error":"#VALUE!"},{"$error":"#VALUE!"},{"$error":"#VALUE!"},{"$error":"#VALUE!"},{"$error":"#VALUE!"},{"$error":"#VALUE!"},{"$error":"#VALUE!"},{"$error":"#VALUE!"},{"$error":"#VALUE!"},{"$error":"#VALUE!"},{"$error":"#VALUE!"},{"$error":"#VALUE!"},{"$error":"#VALUE!"},{"$error":"#VALUE!"},{"$error":"#VALUE!"},{"$error":"#VALUE!"},{"$error":"#VALUE!"},{"$error":"#VALUE!"},{"$error":"#VALUE!"},{"$error":"#VALUE!"},{"$error":"#VALUE!"},{"$error":"#VALUE!"},null,410,{"$error":"#VALUE!"},{"$error":"#VALUE!"},{"$error":"#VALUE!"},null,410,{"$error":"#VALUE!"},{"$error":"#VALUE!"},{"$error":"#VALUE!"}]
[420,{"$f":"'Monochromatic RGB Values'!M5","v":{"$error":"#DIV/0!"}},{"$f":"'Monochromatic RGB Values'!N5","v":{"$error":"#DIV/0!"}},{"$f":"'Monochromatic RGB Values'!O5","v":{"$error":"#DIV/0!"}},null,null,{"$error":"#VALUE!"},{"$error":"#VALUE!"},{"$error":"#VALUE!"},{"$error":"#VALUE!"},{"$error":"#VALUE!"},{"$error":"#VALUE!"},{"$error":"#VALUE!"},{"$error":"#VALUE!"},{"$error":"#VALUE!"},{"$error":"#VALUE!"},{"$error":"#VALUE!"},{"$error":"#VALUE!"},{"$error":"#VALUE!"},{"$error":"#VALUE!"},{"$error":"#VALUE!"},{"$error":"#VALUE!"},{"$error":"#VALUE!"},{"$error":"#VALUE!"},{"$error":"#VALUE!"},{"$error":"#VALUE!"},{"$error":"#VALUE!"},{"$error":"#VALUE!"},{"$error":"#VALUE!"},{"$error":"#VALUE!"},{"$error":"#VALUE!"},{"$error":"#VALUE!"},{"$error":"#VALUE!"},{"$error":"#VALUE!"},{"$error":"#VALUE!"},{"$error":"#VALUE!"},{"$error":"#VALUE!"},{"$error":"#VALUE!"},{"$error":"#VALUE!"},null,420,{"$error":"#VALUE!"},{"$error":"#VALUE!"},{"$error":"#VALUE!"},null,420,{"$error":"#VALUE!"},{"$error":"#VALUE!"},{"$error":"#VALUE!"}]
[430,{"$f":"'Monochromatic RGB Values'!M6","v":{"$error":"#DIV/0!"}},{"$f":"'Monochromatic RGB Values'!N6","v":{"$error":"#DIV/0!"}},{"$f":"'Monochromatic RGB Values'!O6","v":{"$error":"#DIV/0!"}},null,null,{"$error":"#VALUE!"},{"$error":"#VALUE!"},{"$error":"#VALUE!"},{"$error":"#VALUE!"},{"$error":"#VALUE!"},{"$error":"#VALUE!"},{"$error":"#VALUE!"},{"$error":"#VALUE!"},{"$error":"#VALUE!"},{"$error":"#VALUE!"},{"$error":"#VALUE!"},{"$error":"#VALUE!"},{"$error":"#VALUE!"},{"$error":"#VALUE!"},{"$error":"#VALUE!"},{"$error":"#VALUE!"},{"$error":"#VALUE!"},{"$error":"#VALUE!"},{"$error":"#VALUE!"},{"$error":"#VALUE!"},{"$error":"#VALUE!"},{"$error":"#VALUE!"},{"$error":"#VALUE!"},{"$error":"#VALUE!"},{"$error":"#VALUE!"},{"$error":"#VALUE!"},{"$error":"#VALUE!"},{"$error":"#VALUE!"},{"$error":"#VALUE!"},{"$error":"#VALUE!"},{"$error":"#VALUE!"},{"$error":"#VALUE!"},{"$error":"#VALUE!"},null,430,{"$error":"#VALUE!"},{"$error":"#VALUE!"},{"$error":"#VALUE!"},null,430,{"$error":"#VALUE!"},{"$error":"#VALUE!"},{"$error":"#VALUE!"}]
[440,{"$f":"'Monochromatic RGB Values'!M7","v":{"$error":"#DIV/0!"}},{"$f":"'Monochromatic RGB Values'!N7","v":{"$error":"#DIV/0!"}},{"$f":"'Monochromatic RGB Values'!O7","v":{"$error":"#DIV/0!"}},null,null,{"$error":"#VALUE!"},{"$error":"#VALUE!"},{"$error":"#VALUE!"},{"$error":"#VALUE!"},{"$error":"#VALUE!"},{"$error":"#VALUE!"},{"$error":"#VALUE!"},{"$error":"#VALUE!"},{"$error":"#VALUE!"},{"$error":"#VALUE!"},{"$error":"#VALUE!"},{"$error":"#VALUE!"},{"$error":"#VALUE!"},{"$error":"#VALUE!"},{"$error":"#VALUE!"},{"$error":"#VALUE!"},{"$error":"#VALUE!"},{"$error":"#VALUE!"},{"$error":"#VALUE!"},{"$error":"#VALUE!"},{"$error":"#VALUE!"},{"$error":"#VALUE!"},{"$error":"#VALUE!"},{"$error":"#VALUE!"},{"$error":"#VALUE!"},{"$error":"#VALUE!"},{"$error":"#VALUE!"},{"$error":"#VALUE!"},{"$error":"#VALUE!"},{"$error":"#VALUE!"},{"$error":"#VALUE!"},{"$error":"#VALUE!"},{"$error":"#VALUE!"},null,440,{"$error":"#VALUE!"},{"$error":"#VALUE!"},{"$error":"#VALUE!"},null,440,{"$error":"#VALUE!"},{"$error":"#VALUE!"},{"$error":"#VALUE!"}]
[450,{"$f":"'Monochromatic RGB Values'!M8","v":{"$error":"#DIV/0!"}},{"$f":"'Monochromatic RGB Values'!N8","v":{"$error":"#DIV/0!"}},{"$f":"'Monochromatic RGB Values'!O8","v":{"$error":"#DIV/0!"}},null,null,{"$error":"#VALUE!"},{"$error":"#VALUE!"},{"$error":"#VALUE!"},{"$error":"#VALUE!"},{"$error":"#VALUE!"},{"$error":"#VALUE!"},{"$error":"#VALUE!"},{"$error":"#VALUE!"},{"$error":"#VALUE!"},{"$error":"#VALUE!"},{"$error":"#VALUE!"},{"$error":"#VALUE!"},{"$error":"#VALUE!"},{"$error":"#VALUE!"},{"$error":"#VALUE!"},{"$error":"#VALUE!"},{"$error":"#VALUE!"},{"$error":"#VALUE!"},{"$error":"#VALUE!"},{"$error":"#VALUE!"},{"$error":"#VALUE!"},{"$error":"#VALUE!"},{"$error":"#VALUE!"},{"$error":"#VALUE!"},{"$error":"#VALUE!"},{"$error":"#VALUE!"},{"$error":"#VALUE!"},{"$error":"#VALUE!"},{"$error":"#VALUE!"},{"$error":"#VALUE!"},{"$error":"#VALUE!"},{"$error":"#VALUE!"},{"$error":"#VALUE!"},null,450,{"$error":"#VALUE!"},{"$error":"#VALUE!"},{"$error":"#VALUE!"},null,450,{"$error":"#VALUE!"},{"$error":"#VALUE!"},{"$error":"#VALUE!"}]
[460,{"$f":"'Monochromatic RGB Values'!M9","v":{"$error":"#DIV/0!"}},{"$f":"'Monochromatic RGB Values'!N9","v":{"$error":"#DIV/0!"}},{"$f":"'Monochromatic RGB Values'!O9","v":{"$error":"#DIV/0!"}},null,null,{"$error":"#VALUE!"},{"$error":"#VALUE!"},{"$error":"#VALUE!"},{"$error":"#VALUE!"},{"$error":"#VALUE!"},{"$error":"#VALUE!"},{"$error":"#VALUE!"},{"$error":"#VALUE!"},{"$error":"#VALUE!"},{"$error":"#VALUE!"},{"$error":"#VALUE!"},{"$error":"#VALUE!"},{"$error":"#VALUE!"},{"$error":"#VALUE!"},{"$error":"#VALUE!"},{"$error":"#VALUE!"},{"$error":"#VALUE!"},{"$error":"#VALUE!"},{"$error":"#VALUE!"},{"$error":"#VALUE!"},{"$error":"#VALUE!"},{"$error":"#VALUE!"},{"$error":"#VALUE!"},{"$error":"#VALUE!"},{"$error":"#VALUE!"},{"$error":"#VALUE!"},{"$error":"#VALUE!"},{"$error":"#VALUE!"},{"$error":"#VALUE!"},{"$error":"#VALUE!"},{"$error":"#VALUE!"},{"$error":"#VALUE!"},{"$error":"#VALUE!"},null,460,{"$error":"#VALUE!"},{"$error":"#VALUE!"},{"$error":"#VALUE!"},null,460,{"$error":"#VALUE!"},{"$error":"#VALUE!"},{"$error":"#VALUE!"}]
[470,{"$f":"'Monochromatic RGB Values'!M10","v":{"$error":"#DIV/0!"}},{"$f":"'Monochromatic RGB Values'!N10","v":{"$error":"#DIV/0!"}},{"$f":"'Monochromatic RGB Values'!O10","v":{"$error":"#DIV/0!"}},null,null,{"$error":"#VALUE!"},{"$error":"#VALUE!"},{"$error":"#VALUE!"},{"$error":"#VALUE!"},{"$error":"#VALUE!"},{"$error":"#VALUE!"},{"$error":"#VALUE!"},{"$error":"#VALUE!"},{"$error":"#VALUE!"},{"$error":"#VALUE!"},{"$error":"#VALUE!"},{"$error":"#VALUE!"},{"$error":"#VALUE!"},{"$error":"#VALUE!"},{"$error":"#VALUE!"},{"$error":"#VALUE!"},{"$error":"#VALUE!"},{"$error":"#VALUE!"},{"$error":"#VALUE!"},{"$error":"#VALUE!"},{"$error":"#VALUE!"},{"$error":"#VALUE!"},{"$error":"#VALUE!"},{"$error":"#VALUE!"},{"$error":"#VALUE!"},{"$error":"#VALUE!"},{"$error":"#VALUE!"},{"$error":"#VALUE!"},{"$error":"#VALUE!"},{"$error":"#VALUE!"},{"$error":"#VALUE!"},{"$error":"#VALUE!"},{"$error":"#VALUE!"},null,470,{"$error":"#VALUE!"},{"$error":"#VALUE!"},{"$error":"#VALUE!"},null,470,{"$error":"#VALUE!"},{"$error":"#VALUE!"},{"$error":"#VALUE!"}]
[480,{"$f":"'Monochromatic RGB Values'!M11","v":{"$error":"#DIV/0!"}},{"$f":"'Monochromatic RGB Values'!N11","v":{"$error":"#DIV/0!"}},{"$f":"'Monochromatic RGB Values'!O11","v":{"$error":"#DIV/0!"}},null,null,{"$error":"#VALUE!"},{"$error":"#VALUE!"},{"$error":"#VALUE!"},{"$error":"#VALUE!"},{"$error":"#VALUE!"},{"$error":"#VALUE!"},{"$error":"#VALUE!"},{"$error":"#VALUE!"},{"$error":"#VALUE!"},{"$error":"#VALUE!"},{"$error":"#VALUE!"},{"$error":"#VALUE!"},{"$error":"#VALUE!"},{"$error":"#VALUE!"},{"$error":"#VALUE!"},{"$error":"#VALUE!"},{"$error":"#VALUE!"},{"$error":"#VALUE!"},{"$error":"#VALUE!"},{"$error":"#VALUE!"},{"$error":"#VALUE!"},{"$error":"#VALUE!"},{"$error":"#VALUE!"},{"$error":"#VALUE!"},{"$error":"#VALUE!"},{"$error":"#VALUE!"},{"$error":"#VALUE!"},{"$error":"#VALUE!"},{"$error":"#VALUE!"},{"$error":"#VALUE!"},{"$error":"#VALUE!"},{"$error":"#VALUE!"},{"$error":"#VALUE!"},null,480,{"$error":"#VALUE!"},{"$error":"#VALUE!"},{"$error":"#VALUE!"},null,480,{"$error":"#VALUE!"},{"$error":"#VALUE!"},{"$error":"#VALUE!"}]
[490,{"$f":"'Monochromatic RGB Values'!M12","v":{"$error":"#DIV/0!"}},{"$f":"'Monochromatic RGB Values'!N12","v":{"$error":"#DIV/0!"}},{"$f":"'Monochromatic RGB Values'!O12","v":{"$error":"#DIV/0!"}},null,null,{"$error":"#VALUE!"},{"$error":"#VALUE!"},{"$error":"#VALUE!"},{"$error":"#VALUE!"},{"$error":"#VALUE!"},{"$error":"#VALUE!"},{"$error":"#VALUE!"},{"$error":"#VALUE!"},{"$error":"#VALUE!"},{"$error":"#VALUE!"},{"$error":"#VALUE!"},{"$error":"#VALUE!"},{"$error":"#VALUE!"},{"$error":"#VALUE!"},{"$error":"#VALUE!"},{"$error":"#VALUE!"},{"$error":"#VALUE!"},{"$error":"#VALUE!"},{"$error":"#VALUE!"},{"$error":"#VALUE!"},{"$error":"#VALUE!"},{"$error":"#VALUE!"},{"$error":"#VALUE!"},{"$error":"#VALUE!"},{"$error":"#VALUE!"},{"$error":"#VALUE!"},{"$error":"#VALUE!"},{"$error":"#VALUE!"},{"$error":"#VALUE!"},{"$error":"#VALUE!"},{"$error":"#VALUE!"},{"$error":"#VALUE!"},{"$error":"#VALUE!"},null,490,{"$error":"#VALUE!"},{"$error":"#VALUE!"},{"$error":"#VALUE!"},null,490,{"$error":"#VALUE!"},{"$error":"#VALUE!"},{"$error":"#VALUE!"}]
[500,{"$f":"'Monochromatic RGB Values'!M13","v":{"$error":"#DIV/0!"}},{"$f":"'Monochromatic RGB Values'!N13","v":{"$error":"#DIV/0!"}},{"$f":"'Monochromatic RGB Values'!O13","v":{"$error":"#DIV/0!"}},null,null,{"$error":"#VALUE!"},{"$error":"#VALUE!"},{"$error":"#VALUE!"},{"$error":"#VALUE!"},{"$error":"#VALUE!"},{"$error":"#VALUE!"},{"$error":"#VALUE!"},{"$error":"#VALUE!"},{"$error":"#VALUE!"},{"$error":"#VALUE!"},{"$error":"#VALUE!"},{"$error":"#VALUE!"},{"$error":"#VALUE!"},{"$error":"#VALUE!"},{"$error":"#VALUE!"},{"$error":"#VALUE!"},{"$error":"#VALUE!"},{"$error":"#VALUE!"},{"$error":"#VALUE!"},{"$error":"#VALUE!"},{"$error":"#VALUE!"},{"$error":"#VALUE!"},{"$error":"#VALUE!"},{"$error":"#VALUE!"},{"$error":"#VALUE!"},{"$error":"#VALUE!"},{"$error":"#VALUE!"},{"$error":"#VALUE!"},{"$error":"#VALUE!"},{"$error":"#VALUE!"},{"$error":"#VALUE!"},{"$error":"#VALUE!"},{"$error":"#VALUE!"},null,500,{"$error":"#VALUE!"},{"$error":"#VALUE!"},{"$error":"#VALUE!"},null,500,{"$error":"#VALUE!"},{"$error":"#VALUE!"},{"$error":"#VALUE!"}]
[510,{"$f":"'Monochromatic RGB Values'!M14","v":{"$error":"#DIV/0!"}},{"$f":"'Monochromatic RGB Values'!N14","v":{"$error":"#DIV/0!"}},{"$f":"'Monochromatic RGB Values'!O14","v":{"$error":"#DIV/0!"}},null,null,{"$error":"#VALUE!"},{"$error":"#VALUE!"},{"$error":"#VALUE!"},{"$error":"#VALUE!"},{"$error":"#VALUE!"},{"$error":"#VALUE!"},{"$error":"#VALUE!"},{"$error":"#VALUE!"},{"$error":"#VALUE!"},{"$error":"#VALUE!"},{"$error":"#VALUE!"},{"$error":"#VALUE!"},{"$error":"#VALUE!"},{"$error":"#VALUE!"},{"$error":"#VALUE!"},{"$error":"#VALUE!"},{"$error":"#VALUE!"},{"$error":"#VALUE!"},{"$error":"#VALUE!"},{"$error":"#VALUE!"},{"$error":"#VALUE!"},{"$error":"#VALUE!"},{"$error":"#VALUE!"},{"$error":"#VALUE!"},{"$error":"#VALUE!"},{"$error":"#VALUE!"},{"$error":"#VALUE!"},{"$error":"#VALUE!"},{"$error":"#VALUE!"},{"$error":"#VALUE!"},{"$error":"#VALUE!"},{"$error":"#VALUE!"},{"$error":"#VALUE!"},null,510,{"$error":"#VALUE!"},{"$error":"#VALUE!"},{"$error":"#VALUE!"},null,510,{"$error":"#VALUE!"},{"$error":"#VALUE!"},{"$error":"#VALUE!"}]
[520,{"$f":"'Monochromatic RGB Values'!M15","v":{"$error":"#DIV/0!"}},{"$f":"'Monochromatic RGB Values'!N15","v":{"$error":"#DIV/0!"}},{"$f":"'Monochromatic RGB Values'!O15","v":{"$error":"#DIV/0!"}},null,null,{"$error":"#VALUE!"},{"$error":"#VALUE!"},{"$error":"#VALUE!"},{"$error":"#VALUE!"},{"$error":"#VALUE!"},{"$error":"#VALUE!"},{"$error":"#VALUE!"},{"$error":"#VALUE!"},{"$error":"#VALUE!"},{"$error":"#VALUE!"},{"$error":"#VALUE!"},{"$error":"#VALUE!"},{"$error":"#VALUE!"},{"$error":"#VALUE!"},{"$error":"#VALUE!"},{"$error":"#VALUE!"},{"$error":"#VALUE!"},{"$error":"#VALUE!"},{"$error":"#VALUE!"},{"$error":"#VALUE!"},{"$error":"#VALUE!"},{"$error":"#VALUE!"},{"$error":"#VALUE!"},{"$error":"#VALUE!"},{"$error":"#VALUE!"},{"$error":"#VALUE!"},{"$error":"#VALUE!"},{"$error":"#VALUE!"},{"$error":"#VALUE!"},{"$error":"#VALUE!"},{"$error":"#VALUE!"},{"$error":"#VALUE!"},{"$error":"#VALUE!"},null,520,{"$error":"#VALUE!"},{"$error":"#VALUE!"},{"$error":"#VALUE!"},null,520,{"$error":"#VALUE!"},{"$error":"#VALUE!"},{"$error":"#VALUE!"}]
[530,{"$f":"'Monochromatic RGB Values'!M16","v":{"$error":"#DIV/0!"}},{"$f":"'Monochromatic RGB Values'!N16","v":{"$error":"#DIV/0!"}},{"$f":"'Monochromatic RGB Values'!O16","v":{"$error":"#DIV/0!"}},null,null,{"$error":"#VALUE!"},{"$error":"#VALUE!"},{"$error":"#VALUE!"},{"$error":"#VALUE!"},{"$error":"#VALUE!"},{"$error":"#VALUE!"},{"$error":"#VALUE!"},{"$error":"#VALUE!"},{"$error":"#VALUE!"},{"$error":"#VALUE!"},{"$error":"#VALUE!"},{"$error":"#VALUE!"},{"$error":"#VALUE!"},{"$error":"#VALUE!"},{"$error":"#VALUE!"},{"$error":"#VALUE!"},{"$error":"#VALUE!"},{"$error":"#VALUE!"},{"$error":"#VALUE!"},{"$error":"#VALUE!"},{"$error":"#VALUE!"},{"$error":"#VALUE!"},{"$error":"#VALUE!"},{"$error":"#VALUE!"},{"$error":"#VALUE!"},{"$error":"#VALUE!"},{"$error":"#VALUE!"},{"$error":"#VALUE!"},{"$error":"#VALUE!"},{"$error":"#VALUE!"},{"$error":"#VALUE!"},{"$error":"#VALUE!"},{"$error":"#VALUE!"},null,530,{"$error":"#VALUE!"},{"$error":"#VALUE!"},{"$error":"#VALUE!"},null,530,{"$error":"#VALUE!"},{"$error":"#VALUE!"},{"$error":"#VALUE!"}]
[540,{"$f":"'Monochromatic RGB Values'!M17","v":{"$error":"#DIV/0!"}},{"$f":"'Monochromatic RGB Values'!N17","v":{"$error":"#DIV/0!"}},{"$f":"'Monochromatic RGB Values'!O17","v":{"$error":"#DIV/0!"}},null,null,{"$error":"#VALUE!"},{"$error":"#VALUE!"},{"$error":"#VALUE!"},{"$error":"#VALUE!"},{"$error":"#VALUE!"},{"$error":"#VALUE!"},{"$error":"#VALUE!"},{"$error":"#VALUE!"},{"$error":"#VALUE!"},{"$error":"#VALUE!"},{"$error":"#VALUE!"},{"$error":"#VALUE!"},{"$error":"#VALUE!"},{"$error":"#VALUE!"},{"$error":"#VALUE!"},{"$error":"#VALUE!"},{"$error":"#VALUE!"},{"$error":"#VALUE!"},{"$error":"#VALUE!"},{"$error":"#VALUE!"},{"$error":"#VALUE!"},{"$error":"#VALUE!"},{"$error":"#VALUE!"},{"$error":"#VALUE!"},{"$error":"#VALUE!"},{"$error":"#VALUE!"},{"$error":"#VALUE!"},{"$error":"#VALUE!"},{"$error":"#VALUE!"},{"$error":"#VALUE!"},{"$error":"#VALUE!"},{"$error":"#VALUE!"},{"$error":"#VALUE!"},null,540,{"$error":"#VALUE!"},{"$error":"#VALUE!"},{"$error":"#VALUE!"},null,540,{"$error":"#VALUE!"},{"$error":"#VALUE!"},{"$error":"#VALUE!"}]
[550,{"$f":"'Monochromatic RGB Values'!M18","v":{"$error":"#DIV/0!"}},{"$f":"'Monochromatic RGB Values'!N18","v":{"$error":"#DIV/0!"}},{"$f":"'Monochromatic RGB Values'!O18","v":{"$error":"#DIV/0!"}},null,null,{"$error":"#VALUE!"},{"$error":"#VALUE!"},{"$error":"#VALUE!"},{"$error":"#VALUE!"},{"$error":"#VALUE!"},{"$error":"#VALUE!"},{"$error":"#VALUE!"},{"$error":"#VALUE!"},{"$error":"#VALUE!"},{"$error":"#VALUE!"},{"$error":"#VALUE!"},{"$error":"#VALUE!"},{"$error":"#VALUE!"},{"$error":"#VALUE!"},{"$error":"#VALUE!"},{"$error":"#VALUE!"},{"$error":"#VALUE!"},{"$error":"#VALUE!"},{"$error":"#VALUE!"},{"$error":"#VALUE!"},{"$error":"#VALUE!"},{"$error":"#VALUE!"},{"$error":"#VALUE!"},{"$error":"#VALUE!"},{"$error":"#VALUE!"},{"$error":"#VALUE!"},{"$error":"#VALUE!"},{"$error":"#VALUE!"},{"$error":"#VALUE!"},{"$error":"#VALUE!"},{"$error":"#VALUE!"},{"$error":"#VALUE!"},{"$error":"#VALUE!"},null,550,{"$error":"#VALUE!"},{"$error":"#VALUE!"},{"$error":"#VALUE!"},null,550,{"$error":"#VALUE!"},{"$error":"#VALUE!"},{"$error":"#VALUE!"}]
[560,{"$f":"'Monochromatic RGB Values'!M19","v":{"$error":"#DIV/0!"}},{"$f":"'Monochromatic RGB Values'!N19","v":{"$error":"#DIV/0!"}},{"$f":"'Monochromatic RGB Values'!O19","v":{"$error":"#DIV/0!"}},null,null,{"$error":"#VALUE!"},{"$error":"#VALUE!"},{"$error":"#VALUE!"},{"$error":"#VALUE!"},{"$error":"#VALUE!"},{"$error":"#VALUE!"},{"$error":"#VALUE!"},{"$error":"#VALUE!"},{"$error":"#VALUE!"},{"$error":"#VALUE!"},{"$error":"#VALUE!"},{"$error":"#VALUE!"},{"$error":"#VALUE!"},{"$error":"#VALUE!"},{"$error":"#VALUE!"},{"$error":"#VALUE!"},{"$error":"#VALUE!"},{"$error":"#VALUE!"},{"$error":"#VALUE!"},{"$error":"#VALUE!"},{"$error":"#VALUE!"},{"$error":"#VALUE!"},{"$error":"#VALUE!"},{"$error":"#VALUE!"},{"$error":"#VALUE!"},{"$error":"#VALUE!"},{"$error":"#VALUE!"},{"$error":"#VALUE!"},{"$error":"#VALUE!"},{"$error":"#VALUE!"},{"$error":"#VALUE!"},{"$error":"#VALUE!"},{"$error":"#VALUE!"},null,560,{"$error":"#VALUE!"},{"$error":"#VALUE!"},{"$error":"#VALUE!"},null,560,{"$error":"#VALUE!"},{"$error":"#VALUE!"},{"$error":"#VALUE!"}]
[570,{"$f":"'Monochromatic RGB Values'!M20","v":{"$error":"#DIV/0!"}},{"$f":"'Monochromatic RGB Values'!N20","v":{"$error":"#DIV/0!"}},{"$f":"'Monochromatic RGB Values'!O20","v":{"$error":"#DIV/0!"}},null,null,{"$error":"#VALUE!"},{"$error":"#VALUE!"},{"$error":"#VALUE!"},{"$error":"#VALUE!"},{"$error":"#VALUE!"},{"$error":"#VALUE!"},{"$error":"#VALUE!"},{"$error":"#VALUE!"},{"$error":"#VALUE!"},{"$error":"#VALUE!"},{"$error":"#VALUE!"},{"$error":"#VALUE!"},{"$error":"#VALUE!"},{"$error":"#VALUE!"},{"$error":"#VALUE!"},{"$error":"#VALUE!"},{"$error":"#VALUE!"},{"$error":"#VALUE!"},{"$error":"#VALUE!"},{"$error":"#VALUE!"},{"$error":"#VALUE!"},{"$error":"#VALUE!"},{"$error":"#VALUE!"},{"$error":"#VALUE!"},{"$error":"#VALUE!"},{"$error":"#VALUE!"},{"$error":"#VALUE!"},{"$error":"#VALUE!"},{"$error":"#VALUE!"},{"$error":"#VALUE!"},{"$error":"#VALUE!"},{"$error":"#VALUE!"},{"$error":"#VALUE!"},null,570,{"$error":"#VALUE!"},{"$error":"#VALUE!"},{"$error":"#VALUE!"},null,570,{"$error":"#VALUE!"},{"$error":"#VALUE!"},{"$error":"#VALUE!"}]
[580,{"$f":"'Monochromatic RGB Values'!M21","v":{"$error":"#DIV/0!"}},{"$f":"'Monochromatic RGB Values'!N21","v":{"$error":"#DIV/0!"}},{"$f":"'Monochromatic RGB Values'!O21","v":{"$error":"#DIV/0!"}},null,null,{"$error":"#VALUE!"},{"$error":"#VALUE!"},{"$error":"#VALUE!"},{"$error":"#VALUE!"},{"$error":"#VALUE!"},{"$error":"#VALUE!"},{"$error":"#VALUE!"},{"$error":"#VALUE!"},{"$error":"#VALUE!"},{"$error":"#VALUE!"},{"$error":"#VALUE!"},{"$error":"#VALUE!"},{"$error":"#VALUE!"},{"$error":"#VALUE!"},{"$error":"#VALUE!"},{"$error":"#VALUE!"},{"$error":"#VALUE!"},{"$error":"#VALUE!"},{"$error":"#VALUE!"},{"$error":"#VALUE!"},{"$error":"#VALUE!"},{"$error":"#VALUE!"},{"$error":"#VALUE!"},{"$error":"#VALUE!"},{"$error":"#VALUE!"},{"$error":"#VALUE!"},{"$error":"#VALUE!"},{"$error":"#VALUE!"},{"$error":"#VALUE!"},{"$error":"#VALUE!"},{"$error":"#VALUE!"},{"$error":"#VALUE!"},{"$error":"#VALUE!"},null,580,{"$error":"#VALUE!"},{"$error":"#VALUE!"},{"$error":"#VALUE!"},null,580,{"$error":"#VALUE!"},{"$error":"#VALUE!"},{"$error":"#VALUE!"}]
[590,{"$f":"'Monochromatic RGB Values'!M22","v":{"$error":"#DIV/0!"}},{"$f":"'Monochromatic RGB Values'!N22","v":{"$error":"#DIV/0!"}},{"$f":"'Monochromatic RGB Values'!O22","v":{"$error":"#DIV/0!"}},null,null,{"$error":"#VALUE!"},{"$error":"#VALUE!"},{"$error":"#VALUE!"},{"$error":"#VALUE!"},{"$error":"#VALUE!"},{"$error":"#VALUE!"},{"$error":"#VALUE!"},{"$error":"#VALUE!"},{"$error":"#VALUE!"},{"$error":"#VALUE!"},{"$error":"#VALUE!"},{"$error":"#VALUE!"},{"$error":"#VALUE!"},{"$error":"#VALUE!"},{"$error":"#VALUE!"},{"$error":"#VALUE!"},{"$error":"#VALUE!"},{"$error":"#VALUE!"},{"$error":"#VALUE!"},{"$error":"#VALUE!"},{"$error":"#VALUE!"},{"$error":"#VALUE!"},{"$error":"#VALUE!"},{"$error":"#VALUE!"},{"$error":"#VALUE!"},{"$error":"#VALUE!"},{"$error":"#VALUE!"},{"$error":"#VALUE!"},{"$error":"#VALUE!"},{"$error":"#VALUE!"},{"$error":"#VALUE!"},{"$error":"#VALUE!"},{"$error":"#VALUE!"},null,590,{"$error":"#VALUE!"},{"$error":"#VALUE!"},{"$error":"#VALUE!"},null,590,{"$error":"#VALUE!"},{"$error":"#VALUE!"},{"$error":"#VALUE!"}]
[600,{"$f":"'Monochromatic RGB Values'!M23","v":{"$error":"#DIV/0!"}},{"$f":"'Monochromatic RGB Values'!N23","v":{"$error":"#DIV/0!"}},{"$f":"'Monochromatic RGB Values'!O23","v":{"$error":"#DIV/0!"}},null,null,{"$error":"#VALUE!"},{"$error":"#VALUE!"},{"$error":"#VALUE!"},{"$error":"#VALUE!"},{"$error":"#VALUE!"},{"$error":"#VALUE!"},{"$error":"#VALUE!"},{"$error":"#VALUE!"},{"$error":"#VALUE!"},{"$error":"#VALUE!"},{"$error":"#VALUE!"},{"$error":"#VALUE!"},{"$error":"#VALUE!"},{"$error":"#VALUE!"},{"$error":"#VALUE!"},{"$error":"#VALUE!"},{"$error":"#VALUE!"},{"$error":"#VALUE!"},{"$error":"#VALUE!"},{"$error":"#VALUE!"},{"$error":"#VALUE!"},{"$error":"#VALUE!"},{"$error":"#VALUE!"},{"$error":"#VALUE!"},{"$error":"#VALUE!"},{"$error":"#VALUE!"},{"$error":"#VALUE!"},{"$error":"#VALUE!"},{"$error":"#VALUE!"},{"$error":"#VALUE!"},{"$error":"#VALUE!"},{"$error":"#VALUE!"},{"$error":"#VALUE!"},null,600,{"$error":"#VALUE!"},{"$error":"#VALUE!"},{"$error":"#VALUE!"},null,600,{"$error":"#VALUE!"},{"$error":"#VALUE!"},{"$error":"#VALUE!"}]
[610,{"$f":"'Monochromatic RGB Values'!M24","v":{"$error":"#DIV/0!"}},{"$f":"'Monochromatic RGB Values'!N24","v":{"$error":"#DIV/0!"}},{"$f":"'Monochromatic RGB Values'!O24","v":{"$error":"#DIV/0!"}},null,null,{"$error":"#VALUE!"},{"$error":"#VALUE!"},{"$error":"#VALUE!"},{"$error":"#VALUE!"},{"$error":"#VALUE!"},{"$error":"#VALUE!"},{"$error":"#VALUE!"},{"$error":"#VALUE!"},{"$error":"#VALUE!"},{"$error":"#VALUE!"},{"$error":"#VALUE!"},{"$error":"#VALUE!"},{"$error":"#VALUE!"},{"$error":"#VALUE!"},{"$error":"#VALUE!"},{"$error":"#VALUE!"},{"$error":"#VALUE!"},{"$error":"#VALUE!"},{"$error":"#VALUE!"},{"$error":"#VALUE!"},{"$error":"#VALUE!"},{"$error":"#VALUE!"},{"$error":"#VALUE!"},{"$error":"#VALUE!"},{"$error":"#VALUE!"},{"$error":"#VALUE!"},{"$error":"#VALUE!"},{"$error":"#VALUE!"},{"$error":"#VALUE!"},{"$error":"#VALUE!"},{"$error":"#VALUE!"},{"$error":"#VALUE!"},{"$error":"#VALUE!"},null,610,{"$error":"#VALUE!"},{"$error":"#VALUE!"},{"$error":"#VALUE!"},null,610,{"$error":"#VALUE!"},{"$error":"#VALUE!"},{"$error":"#VALUE!"}]
[620,{"$f":"'Monochromatic RGB Values'!M25","v":{"$error":"#DIV/0!"}},{"$f":"'Monochromatic RGB Values'!N25","v":{"$error":"#DIV/0!"}},{"$f":"'Monochromatic RGB Values'!O25","v":{"$error":"#DIV/0!"}},null,null,{"$error":"#VALUE!"},{"$error":"#VALUE!"},{"$error":"#VALUE!"},{"$error":"#VALUE!"},{"$error":"#VALUE!"},{"$error":"#VALUE!"},{"$error":"#VALUE!"},{"$error":"#VALUE!"},{"$error":"#VALUE!"},{"$error":"#VALUE!"},{"$error":"#VALUE!"},{"$error":"#VALUE!"},{"$error":"#VALUE!"},{"$error":"#VALUE!"},{"$error":"#VALUE!"},{"$error":"#VALUE!"},{"$error":"#VALUE!"},{"$error":"#VALUE!"},{"$error":"#VALUE!"},{"$error":"#VALUE!"},{"$error":"#VALUE!"},{"$error":"#VALUE!"},{"$error":"#VALUE!"},{"$error":"#VALUE!"},{"$error":"#VALUE!"},{"$error":"#VALUE!"},{"$error":"#VALUE!"},{"$error":"#VALUE!"},{"$error":"#VALUE!"},{"$error":"#VALUE!"},{"$error":"#VALUE!"},{"$error":"#VALUE!"},{"$error":"#VALUE!"},null,620,{"$error":"#VALUE!"},{"$error":"#VALUE!"},{"$error":"#VALUE!"},null,620,{"$error":"#VALUE!"},{"$error":"#VALUE!"},{"$error":"#VALUE!"}]
[630,{"$f":"'Monochromatic RGB Values'!M26","v":{"$error":"#DIV/0!"}},{"$f":"'Monochromatic RGB Values'!N26","v":{"$error":"#DIV/0!"}},{"$f":"'Monochromatic RGB Values'!O26","v":{"$error":"#DIV/0!"}},null,null,{"$error":"#VALUE!"},{"$error":"#VALUE!"},{"$error":"#VALUE!"},{"$error":"#VALUE!"},{"$error":"#VALUE!"},{"$error":"#VALUE!"},{"$error":"#VALUE!"},{"$error":"#VALUE!"},{"$error":"#VALUE!"},{"$error":"#VALUE!"},{"$error":"#VALUE!"},{"$error":"#VALUE!"},{"$error":"#VALUE!"},{"$error":"#VALUE!"},{"$error":"#VALUE!"},{"$error":"#VALUE!"},{"$error":"#VALUE!"},{"$error":"#VALUE!"},{"$error":"#VALUE!"},{"$error":"#VALUE!"},{"$error":"#VALUE!"},{"$error":"#VALUE!"},{"$error":"#VALUE!"},{"$error":"#VALUE!"},{"$error":"#VALUE!"},{"$error":"#VALUE!"},{"$error":"#VALUE!"},{"$error":"#VALUE!"},{"$error":"#VALUE!"},{"$error":"#VALUE!"},{"$error":"#VALUE!"},{"$error":"#VALUE!"},{"$error":"#VALUE!"},null,630,{"$error":"#VALUE!"},{"$error":"#VALUE!"},{"$error":"#VALUE!"},null,630,{"$error":"#VALUE!"},{"$error":"#VALUE!"},{"$error":"#VALUE!"}]
[640,{"$f":"'Monochromatic RGB Values'!M27","v":{"$error":"#DIV/0!"}},{"$f":"'Monochromatic RGB Values'!N27","v":{"$error":"#DIV/0!"}},{"$f":"'Monochromatic RGB Values'!O27","v":{"$error":"#DIV/0!"}},null,null,{"$error":"#VALUE!"},{"$error":"#VALUE!"},{"$error":"#VALUE!"},{"$error":"#VALUE!"},{"$error":"#VALUE!"},{"$error":"#VALUE!"},{"$error":"#VALUE!"},{"$error":"#VALUE!"},{"$error":"#VALUE!"},{"$error":"#VALUE!"},{"$error":"#VALUE!"},{"$error":"#VALUE!"},{"$error":"#VALUE!"},{"$error":"#VALUE!"},{"$error":"#VALUE!"},{"$error":"#VALUE!"},{"$error":"#VALUE!"},{"$error":"#VALUE!"},{"$error":"#VALUE!"},{"$error":"#VALUE!"},{"$error":"#VALUE!"},{"$error":"#VALUE!"},{"$error":"#VALUE!"},{"$error":"#VALUE!"},{"$error":"#VALUE!"},{"$error":"#VALUE!"},{"$error":"#VALUE!"},{"$error":"#VALUE!"},{"$error":"#VALUE!"},{"$error":"#VALUE!"},{"$error":"#VALUE!"},{"$error":"#VALUE!"},{"$error":"#VALUE!"},null,640,{"$error":"#VALUE!"},{"$error":"#VALUE!"},{"$error":"#VALUE!"},null,640,{"$error":"#VALUE!"},{"$error":"#VALUE!"},{"$error":"#VALUE!"}]
[650,{"$f":"'Monochromatic RGB Values'!M28","v":{"$error":"#DIV/0!"}},{"$f":"'Monochromatic RGB Values'!N28","v":{"$error":"#DIV/0!"}},{"$f":"'Monochromatic RGB Values'!O28","v":{"$error":"#DIV/0!"}},null,null,{"$error":"#VALUE!"},{"$error":"#VALUE!"},{"$error":"#VALUE!"},{"$error":"#VALUE!"},{"$error":"#VALUE!"},{"$error":"#VALUE!"},{"$error":"#VALUE!"},{"$error":"#VALUE!"},{"$error":"#VALUE!"},{"$error":"#VALUE!"},{"$error":"#VALUE!"},{"$error":"#VALUE!"},{"$error":"#VALUE!"},{"$error":"#VALUE!"},{"$error":"#VALUE!"},{"$error":"#VALUE!"},{"$error":"#VALUE!"},{"$error":"#VALUE!"},{"$error":"#VALUE!"},{"$error":"#VALUE!"},{"$error":"#VALUE!"},{"$error":"#VALUE!"},{"$error":"#VALUE!"},{"$error":"#VALUE!"},{"$error":"#VALUE!"},{"$error":"#VALUE!"},{"$error":"#VALUE!"},{"$error":"#VALUE!"},{"$error":"#VALUE!"},{"$error":"#VALUE!"},{"$error":"#VALUE!"},{"$error":"#VALUE!"},{"$error":"#VALUE!"},null,650,{"$error":"#VALUE!"},{"$error":"#VALUE!"},{"$error":"#VALUE!"},null,650,{"$error":"#VALUE!"},{"$error":"#VALUE!"},{"$error":"#VALUE!"}]
[660,{"$f":"'Monochromatic RGB Values'!M29","v":{"$error":"#DIV/0!"}},{"$f":"'Monochromatic RGB Values'!N29","v":{"$error":"#DIV/0!"}},{"$f":"'Monochromatic RGB Values'!O29","v":{"$error":"#DIV/0!"}},null,null,{"$error":"#VALUE!"},{"$error":"#VALUE!"},{"$error":"#VALUE!"},{"$error":"#VALUE!"},{"$error":"#VALUE!"},{"$error":"#VALUE!"},{"$error":"#VALUE!"},{"$error":"#VALUE!"},{"$error":"#VALUE!"},{"$error":"#VALUE!"},{"$error":"#VALUE!"},{"$error":"#VALUE!"},{"$error":"#VALUE!"},{"$error":"#VALUE!"},{"$error":"#VALUE!"},{"$error":"#VALUE!"},{"$error":"#VALUE!"},{"$error":"#VALUE!"},{"$error":"#VALUE!"},{"$error":"#VALUE!"},{"$error":"#VALUE!"},{"$error":"#VALUE!"},{"$error":"#VALUE!"},{"$error":"#VALUE!"},{"$error":"#VALUE!"},{"$error":"#VALUE!"},{"$error":"#VALUE!"},{"$error":"#VALUE!"},{"$error":"#VALUE!"},{"$error":"#VALUE!"},{"$error":"#VALUE!"},{"$error":"#VALUE!"},{"$error":"#VALUE!"},null,660,{"$error":"#VALUE!"},{"$error":"#VALUE!"},{"$error":"#VALUE!"},null,660,{"$error":"#VALUE!"},{"$error":"#VALUE!"},{"$error":"#VALUE!"}]
[670,{"$f":"'Monochromatic RGB Values'!M30","v":{"$error":"#DIV/0!"}},{"$f":"'Monochromatic RGB Values'!N30","v":{"$error":"#DIV/0!"}},{"$f":"'Monochromatic RGB Values'!O30","v":{"$error":"#DIV/0!"}},null,null,{"$error":"#VALUE!"},{"$error":"#VALUE!"},{"$error":"#VALUE!"},{"$error":"#VALUE!"},{"$error":"#VALUE!"},{"$error":"#VALUE!"},{"$error":"#VALUE!"},{"$error":"#VALUE!"},{"$error":"#VALUE!"},{"$error":"#VALUE!"},{"$error":"#VALUE!"},{"$error":"#VALUE!"},{"$error":"#VALUE!"},{"$error":"#VALUE!"},{"$error":"#VALUE!"},{"$error":"#VALUE!"},{"$error":"#VALUE!"},{"$error":"#VALUE!"},{"$error":"#VALUE!"},{"$error":"#VALUE!"},{"$error":"#VALUE!"},{"$error":"#VALUE!"},{"$error":"#VALUE!"},{"$error":"#VALUE!"},{"$error":"#VALUE!"},{"$error":"#VALUE!"},{"$error":"#VALUE!"},{"$error":"#VALUE!"},{"$error":"#VALUE!"},{"$error":"#VALUE!"},{"$error":"#VALUE!"},{"$error":"#VALUE!"},{"$error":"#VALUE!"},null,670,{"$error":"#VALUE!"},{"$error":"#VALUE!"},{"$error":"#VALUE!"},null,670,{"$error":"#VALUE!"},{"$error":"#VALUE!"},{"$error":"#VALUE!"}]
[680,{"$f":"'Monochromatic RGB Values'!M31","v":{"$error":"#DIV/0!"}},{"$f":"'Monochromatic RGB Values'!N31","v":{"$error":"#DIV/0!"}},{"$f":"'Monochromatic RGB Values'!O31","v":{"$error":"#DIV/0!"}},null,null,{"$error":"#VALUE!"},{"$error":"#VALUE!"},{"$error":"#VALUE!"},{"$error":"#VALUE!"},{"$error":"#VALUE!"},{"$error":"#VALUE!"},{"$error":"#VALUE!"},{"$error":"#VALUE!"},{"$error":"#VALUE!"},{"$error":"#VALUE!"},{"$error":"#VALUE!"},{"$error":"#VALUE!"},{"$error":"#VALUE!"},{"$error":"#VALUE!"},{"$error":"#VALUE!"},{"$error":"#VALUE!"},{"$error":"#VALUE!"},{"$error":"#VALUE!"},{"$error":"#VALUE!"},{"$error":"#VALUE!"},{"$error":"#VALUE!"},{"$error":"#VALUE!"},{"$error":"#VALUE!"},{"$error":"#VALUE!"},{"$error":"#VALUE!"},{"$error":"#VALUE!"},{"$error":"#VALUE!"},{"$error":"#VALUE!"},{"$error":"#VALUE!"},{"$error":"#VALUE!"},{"$error":"#VALUE!"},{"$error":"#VALUE!"},{"$error":"#VALUE!"},null,680,{"$error":"#VALUE!"},{"$error":"#VALUE!"},{"$error":"#VALUE!"},null,680,{"$error":"#VALUE!"},{"$error":"#VALUE!"},{"$error":"#VALUE!"}]
[690,{"$f":"'Monochromatic RGB Values'!M32","v":{"$error":"#DIV/0!"}},{"$f":"'Monochromatic RGB Values'!N32","v":{"$error":"#DIV/0!"}},{"$f":"'Monochromatic RGB Values'!O32","v":{"$error":"#DIV/0!"}},null,null,{"$error":"#VALUE!"},{"$error":"#VALUE!"},{"$error":"#VALUE!"},{"$error":"#VALUE!"},{"$error":"#VALUE!"},{"$error":"#VALUE!"},{"$error":"#VALUE!"},{"$error":"#VALUE!"},{"$error":"#VALUE!"},{"$error":"#VALUE!"},{"$error":"#VALUE!"},{"$error":"#VALUE!"},{"$error":"#VALUE!"},{"$error":"#VALUE!"},{"$error":"#VALUE!"},{"$error":"#VALUE!"},{"$error":"#VALUE!"},{"$error":"#VALUE!"},{"$error":"#VALUE!"},{"$error":"#VALUE!"},{"$error":"#VALUE!"},{"$error":"#VALUE!"},{"$error":"#VALUE!"},{"$error":"#VALUE!"},{"$error":"#VALUE!"},{"$error":"#VALUE!"},{"$error":"#VALUE!"},{"$error":"#VALUE!"},{"$error":"#VALUE!"},{"$error":"#VALUE!"},{"$error":"#VALUE!"},{"$error":"#VALUE!"},{"$error":"#VALUE!"},null,690,{"$error":"#VALUE!"},{"$error":"#VALUE!"},{"$error":"#VALUE!"},null,690,{"$error":"#VALUE!"},{"$error":"#VALUE!"},{"$error":"#VALUE!"}]
[700,{"$f":"'Monochromatic RGB Values'!M33","v":{"$error":"#DIV/0!"}},{"$f":"'Monochromatic RGB Values'!N33","v":{"$error":"#DIV/0!"}},{"$f":"'Monochromatic RGB Values'!O33","v":{"$error":"#DIV/0!"}},null,null,{"$error":"#VALUE!"},{"$error":"#VALUE!"},{"$error":"#VALUE!"},{"$error":"#VALUE!"},{"$error":"#VALUE!"},{"$error":"#VALUE!"},{"$error":"#VALUE!"},{"$error":"#VALUE!"},{"$error":"#VALUE!"},{"$error":"#VALUE!"},{"$error":"#VALUE!"},{"$error":"#VALUE!"},{"$error":"#VALUE!"},{"$error":"#VALUE!"},{"$error":"#VALUE!"},{"$error":"#VALUE!"},{"$error":"#VALUE!"},{"$error":"#VALUE!"},{"$error":"#VALUE!"},{"$error":"#VALUE!"},{"$error":"#VALUE!"},{"$error":"#VALUE!"},{"$error":"#VALUE!"},{"$error":"#VALUE!"},{"$error":"#VALUE!"},{"$error":"#VALUE!"},{"$error":"#VALUE!"},{"$error":"#VALUE!"},{"$error":"#VALUE!"},{"$error":"#VALUE!"},{"$error":"#VALUE!"},{"$error":"#VALUE!"},{"$error":"#VALUE!"},null,700,{"$error":"#VALUE!"},{"$error":"#VALUE!"},{"$error":"#VALUE!"},null,700,{"$error":"#VALUE!"},{"$error":"#VALUE!"},{"$error":"#VALUE!"}]
[710,{"$f":"'Monochromatic RGB Values'!M34","v":{"$error":"#DIV/0!"}},{"$f":"'Monochromatic RGB Values'!N34","v":{"$error":"#DIV/0!"}},{"$f":"'Monochromatic RGB Values'!O34","v":{"$error":"#DIV/0!"}},null,null,{"$error":"#VALUE!"},{"$error":"#VALUE!"},{"$error":"#VALUE!"},{"$error":"#VALUE!"},{"$error":"#VALUE!"},{"$error":"#VALUE!"},{"$error":"#VALUE!"},{"$error":"#VALUE!"},{"$error":"#VALUE!"},{"$error":"#VALUE!"},{"$error":"#VALUE!"},{"$error":"#VALUE!"},{"$error":"#VALUE!"},{"$error":"#VALUE!"},{"$error":"#VALUE!"},{"$error":"#VALUE!"},{"$error":"#VALUE!"},{"$error":"#VALUE!"},{"$error":"#VALUE!"},{"$error":"#VALUE!"},{"$error":"#VALUE!"},{"$error":"#VALUE!"},{"$error":"#VALUE!"},{"$error":"#VALUE!"},{"$error":"#VALUE!"},{"$error":"#VALUE!"},{"$error":"#VALUE!"},{"$error":"#VALUE!"},{"$error":"#VALUE!"},{"$error":"#VALUE!"},{"$error":"#VALUE!"},{"$error":"#VALUE!"},{"$error":"#VALUE!"},null,710,{"$error":"#VALUE!"},{"$error":"#VALUE!"},{"$error":"#VALUE!"},null,710,{"$error":"#VALUE!"},{"$error":"#VALUE!"},{"$error":"#VALUE!"}]

{"sheet":"RGB Values","index":3,"n_rows":21,"n_cols":20,"rows_kept":21,"cut":false,"hidden":false,"merged":[]}
[null,null,null,null,null,null,"R","G","B",null,"norm. values",null,"R","G","B",null,"Chromaticity coordinates",null,"r","g"]
[null,null,null,null,null,"Sample 1",null,null,null,null,null,"Sample 1",{"$f":"(G2-$G$15)/($H$21*$I$18)","v":{"$error":"#DIV/0!"}},{"$f":"(H2-$H$15)/($H$21*$I$19)","v":{"$error":"#DIV/0!"}},{"$f":"(I2-$I$15)/($H$21*$I$20)","v":{"$error":"#DIV/0!"}},null,null,"Sample 1",{"$f":"M2/(M2+N2+O2)","v":{"$error":"#DIV/0!"}},{"$f":"N2/(M2+N2+O2)","v":{"$error":"#DIV/0!"}}]
[null,null,null,null,null,"Sample 2",null,null,null,null,null,"Sample 2",{"$error":"#DIV/0!"},{"$error":"#DIV/0!"},{"$error":"#DIV/0!"},null,null,"Sample 2",{"$error":"#DIV/0!"},{"$error":"#DIV/0!"}]
[null,null,null,null,null,"Sample 3",null,null,null,null,null,"Sample 3",{"$error":"#DIV/0!"},{"$error":"#DIV/0!"},{"$error":"#DIV/0!"},null,null,"Sample 3",{"$error":"#DIV/0!"},{"$error":"#DIV/0!"}]
[null,null,null,null,null,"Sample 4",null,null,null,null,null,"Sample 4",{"$error":"#DIV/0!"},{"$error":"#DIV/0!"},{"$error":"#DIV/0!"},null,null,"Sample 4",{"$error":"#DIV/0!"},{"$error":"#DIV/0!"}]
[null,null,null,null,null,"Sample 5",null,null,null,null,null,"Sample 5",{"$error":"#DIV/0!"},{"$error":"#DIV/0!"},{"$error":"#DIV/0!"},null,null,"Sample 5",{"$error":"#DIV/0!"},{"$error":"#DIV/0!"}]
[null,null,null,null,null,"Sample 6",null,null,null,null,null,"Sample 6",{"$error":"#DIV/0!"},{"$error":"#DIV/0!"},{"$error":"#DIV/0!"},null,null,"Sample 6",{"$error":"#DIV/0!"},{"$error":"#DIV/0!"}]
[null,null,null,null,null,"Sample 7",null,null,null,null,null,"Sample 7",{"$error":"#DIV/0!"},{"$error":"#DIV/0!"},{"$error":"#DIV/0!"},null,null,"Sample 7",{"$error":"#DIV/0!"},{"$error":"#DIV/0!"}]
[null,null,null,null,null,"Sample 8",null,null,null,null,null,"Sample 8",{"$error":"#DIV/0!"},{"$error":"#DIV/0!"},{"$error":"#DIV/0!"},null,null,"Sample 8",{"$error":"#DIV/0!"},{"$error":"#DIV/0!"}]
[null,null,null,null,null,"Sample 9",null,null,null,null,null,"Sample 9",{"$error":"#DIV/0!"},{"$error":"#DIV/0!"},{"$error":"#DIV/0!"},null,null,"Sample 9",{"$error":"#DIV/0!"},{"$error":"#DIV/0!"}]
[null,null,null,null,null,"Sample 10",null,null,null,null,null,"Sample 10",{"$error":"#DIV/0!"},{"$error":"#DIV/0!"},{"$error":"#DIV/0!"},null,null,"Sample 10",{"$error":"#DIV/0!"},{"$error":"#DIV/0!"}]
[null,null,null,null,null,"Sample 11",null,null,null,null,null,"Sample 11",{"$error":"#DIV/0!"},{"$error":"#DIV/0!"},{"$error":"#DIV/0!"},null,null,"Sample 11",{"$error":"#DIV/0!"},{"$error":"#DIV/0!"}]
[null,null,null,null,null,"Sample 12",null,null,null,null,null,"Sample 12",{"$error":"#DIV/0!"},{"$error":"#DIV/0!"},{"$error":"#DIV/0!"},null,null,"Sample 12",{"$error":"#DIV/0!"},{"$error":"#DIV/0!"}]
[null,null,null,null,null,"Sample 13",null,null,null,null,null,"Sample 13",{"$error":"#DIV/0!"},{"$error":"#DIV/0!"},{"$error":"#DIV/0!"},null,null,"Sample 13",{"$error":"#DIV/0!"},{"$error":"#DIV/0!"}]
[null,null,null,null,null,"Background"]
[]
[null,null,null,null,null,"Camera Settings"]
[null,null,null,null,null,"White Point:","R:",null,{"$f":"H18/H19","v":{"$error":"#DIV/0!"}}]
[null,null,null,null,null,null,"G:",null,{"$f":"H19/H19","v":{"$error":"#DIV/0!"}}]
[null,null,null,null,null,null,"B:",null,{"$f":"H20/H19","v":{"$error":"#DIV/0!"}}]
[null,null,null,null,null,"Bit",16,{"$f":"2^G21-1","v":65535}]

{"sheet":"Spectra","index":4,"n_rows":35,"n_cols":24,"rows_kept":35,"cut":false,"hidden":false,"merged":[]}
[null,"Norm. Intensity","Norm. Intensity","Norm. Intensity","Norm. Intensity","Norm. Intensity","Norm. Intensity","Norm. Intensity","Norm. Intensity","Norm. Intensity","Norm. Intensity","Norm. Intensity","Norm. Intensity","Norm. Intensity",null,null,"R","G","B",null,"Chromaticity coordinates",null,"r","g"]
["Wavelength","Sample 1","Sample 2","Sample 3","Sample 4","Sample 5","Sample 6","Sample 7","Sample 8","Sample 9","Sample 10","Sample 11","Sample 12","Sample 13",null,"Sample 1",{"$f":"SUMPRODUCT(B3:B35,PCMFs!$AP$4:$AP$36)","v":{"$error":"#VALUE!"}},{"$f":"SUMPRODUCT(B3:B35,PCMFs!$AQ$4:$AQ$36)","v":{"$error":"#VALUE!"}},{"$f":"SUMPRODUCT(B3:B35,PCMFs!$AR$4:$AR$36)","v":{"$error":"#VALUE!"}},null,null,"Sample 1",{"$f":"Q2/(Q2+R2+S2)","v":{"$error":"#VALUE!"}},{"$f":"R2/(Q2+R2+S2)","v":{"$error":"#VALUE!"}}]
[390,null,null,null,null,null,null,null,null,null,null,null,null,null,null,"Sample 2",{"$f":"SUMPRODUCT(C3:C35,PCMFs!$AP$4:$AP$36)","v":{"$error":"#VALUE!"}},{"$f":"SUMPRODUCT(C3:C35,PCMFs!$AQ$4:$AQ$36)","v":{"$error":"#VALUE!"}},{"$f":"SUMPRODUCT(C3:C35,PCMFs!$AR$4:$AR$36)","v":{"$error":"#VALUE!"}},null,null,"Sample 2",{"$error":"#VALUE!"},{"$error":"#VALUE!"}]
[400,null,null,null,null,null,null,null,null,null,null,null,null,null,null,"Sample 3",{"$f":"SUMPRODUCT(D3:D35,PCMFs!$AP$4:$AP$36)","v":{"$error":"#VALUE!"}},{"$f":"SUMPRODUCT(D3:D35,PCMFs!$AQ$4:$AQ$36)","v":{"$error":"#VALUE!"}},{"$f":"SUMPRODUCT(D3:D35,PCMFs!$AR$4:$AR$36)","v":{"$error":"#VALUE!"}},null,null,"Sample 3",{"$error":"#VALUE!"},{"$error":"#VALUE!"}]
[410,null,null,null,null,null,null,null,null,null,null,null,null,null,null,"Sample 4",{"$f":"SUMPRODUCT(E3:E35,PCMFs!$AP$4:$AP$36)","v":{"$error":"#VALUE!"}},{"$f":"SUMPRODUCT(E3:E35,PCMFs!$AQ$4:$AQ$36)","v":{"$error":"#VALUE!"}},{"$f":"SUMPRODUCT(E3:E35,PCMFs!$AR$4:$AR$36)","v":{"$error":"#VALUE!"}},null,null,"Sample 4",{"$error":"#VALUE!"},{"$error":"#VALUE!"}]
[420,null,null,null,null,null,null,null,null,null,null,null,null,null,null,"Sample 5",{"$f":"SUMPRODUCT(F3:F35,PCMFs!$AP$4:$AP$36)","v":{"$error":"#VALUE!"}},{"$f":"SUMPRODUCT(F3:F35,PCMFs!$AQ$4:$AQ$36)","v":{"$error":"#VALUE!"}},{"$f":"SUMPRODUCT(F3:F35,PCMFs!$AR$4:$AR$36)","v":{"$error":"#VALUE!"}},null,null,"Sample 5",{"$error":"#VALUE!"},{"$error":"#VALUE!"}]
[430,null,null,null,null,null,null,null,null,null,null,null,null,null,null,"Sample 6",{"$f":"SUMPRODUCT(G3:G35,PCMFs!$AP$4:$AP$36)","v":{"$error":"#VALUE!"}},{"$f":"SUMPRODUCT(G3:G35,PCMFs!$AQ$4:$AQ$36)","v":{"$error":"#VALUE!"}},{"$f":"SUMPRODUCT(G3:G35,PCMFs!$AR$4:$AR$36)","v":{"$error":"#VALUE!"}},null,null,"Sample 6",{"$error":"#VALUE!"},{"$error":"#VALUE!"}]
[440,null,null,null,null,null,null,null,null,null,null,null,null,null,null,"Sample 7",{"$f":"SUMPRODUCT(H3:H35,PCMFs!$AP$4:$AP$36)","v":{"$error":"#VALUE!"}},{"$f":"SUMPRODUCT(H3:H35,PCMFs!$AQ$4:$AQ$36)","v":{"$error":"#VALUE!"}},{"$f":"SUMPRODUCT(H3:H35,PCMFs!$AR$4:$AR$36)","v":{"$error":"#VALUE!"}},null,null,"Sample 7",{"$error":"#VALUE!"},{"$error":"#VALUE!"}]
[450,null,null,null,null,null,null,null,null,null,null,null,null,null,null,"Sample 8",{"$f":"SUMPRODUCT(I3:I35,PCMFs!$AP$4:$AP$36)","v":{"$error":"#VALUE!"}},{"$f":"SUMPRODUCT(I3:I35,PCMFs!$AQ$4:$AQ$36)","v":{"$error":"#VALUE!"}},{"$f":"SUMPRODUCT(I3:I35,PCMFs!$AR$4:$AR$36)","v":{"$error":"#VALUE!"}},null,null,"Sample 8",{"$error":"#VALUE!"},{"$error":"#VALUE!"}]
[460,null,null,null,null,null,null,null,null,null,null,null,null,null,null,"Sample 9",{"$f":"SUMPRODUCT(J3:J35,PCMFs!$AP$4:$AP$36)","v":{"$error":"#VALUE!"}},{"$f":"SUMPRODUCT(J3:J35,PCMFs!$AQ$4:$AQ$36)","v":{"$error":"#VALUE!"}},{"$f":"SUMPRODUCT(J3:J35,PCMFs!$AR$4:$AR$36)","v":{"$error":"#VALUE!"}},null,null,"Sample 9",{"$error":"#VALUE!"},{"$error":"#VALUE!"}]
[470,null,null,null,null,null,null,null,null,null,null,null,null,null,null,"Sample 10",{"$f":"SUMPRODUCT(K3:K35,PCMFs!$AP$4:$AP$36)","v":{"$error":"#VALUE!"}},{"$f":"SUMPRODUCT(K3:K35,PCMFs!$AQ$4:$AQ$36)","v":{"$error":"#VALUE!"}},{"$f":"SUMPRODUCT(K3:K35,PCMFs!$AR$4:$AR$36)","v":{"$error":"#VALUE!"}},null,null,"Sample 10",{"$error":"#VALUE!"},{"$error":"#VALUE!"}]
[480,null,null,null,null,null,null,null,null,null,null,null,null,null,null,"Sample 11",{"$f":"SUMPRODUCT(L3:L35,PCMFs!$AP$4:$AP$36)","v":{"$error":"#VALUE!"}},{"$f":"SUMPRODUCT(L3:L35,PCMFs!$AQ$4:$AQ$36)","v":{"$error":"#VALUE!"}},{"$f":"SUMPRODUCT(L3:L35,PCMFs!$AR$4:$AR$36)","v":{"$error":"#VALUE!"}},null,null,"Sample 11",{"$error":"#VALUE!"},{"$error":"#VALUE!"}]
[490,null,null,null,null,null,null,null,null,null,null,null,null,null,null,"Sample 12",{"$f":"SUMPRODUCT(M3:M35,PCMFs!$AP$4:$AP$36)","v":{"$error":"#VALUE!"}},{"$f":"SUMPRODUCT(M3:M35,PCMFs!$AQ$4:$AQ$36)","v":{"$error":"#VALUE!"}},{"$f":"SUMPRODUCT(M3:M35,PCMFs!$AR$4:$AR$36)","v":{"$error":"#VALUE!"}},null,null,"Sample 12",{"$error":"#VALUE!"},{"$error":"#VALUE!"}]
[500,null,null,null,null,null,null,null,null,null,null,null,null,null,null,"Sample 13",{"$f":"SUMPRODUCT(N3:N35,PCMFs!$AP$4:$AP$36)","v":{"$error":"#VALUE!"}},{"$f":"SUMPRODUCT(N3:N35,PCMFs!$AQ$4:$AQ$36)","v":{"$error":"#VALUE!"}},{"$f":"SUMPRODUCT(N3:N35,PCMFs!$AR$4:$AR$36)","v":{"$error":"#VALUE!"}},null,null,"Sample 13",{"$error":"#VALUE!"},{"$error":"#VALUE!"}]
[510]
[520]
[530]
[540]
[550]
[560]
[570]
[580]
[590]
[600]
[610]
[620]
[630]
[640]
[650]
[660]
[670]
[680]
[690]
[700]
[710]

{"sheet":"Deviation","index":5,"n_rows":14,"n_cols":2,"rows_kept":14,"cut":false,"hidden":false,"merged":[]}
["Deviation"]
["Sample 1",{"$f":"(('RGB Values'!S2-Spectra!W2)^2+('RGB Values'!T2-Spectra!X2)^2)^0.5","v":{"$error":"#DIV/0!"}}]
["Sample 2",{"$f":"(('RGB Values'!S3-Spectra!W3)^2+('RGB Values'!T3-Spectra!X3)^2)^0.5","v":{"$error":"#DIV/0!"}}]
["Sample 3",{"$f":"(('RGB Values'!S4-Spectra!W4)^2+('RGB Values'!T4-Spectra!X4)^2)^0.5","v":{"$error":"#DIV/0!"}}]
["Sample 4",{"$f":"(('RGB Values'!S5-Spectra!W5)^2+('RGB Values'!T5-Spectra!X5)^2)^0.5","v":{"$error":"#DIV/0!"}}]
["Sample 5",{"$f":"(('RGB Values'!S6-Spectra!W6)^2+('RGB Values'!T6-Spectra!X6)^2)^0.5","v":{"$error":"#DIV/0!"}}]
["Sample 6",{"$f":"(('RGB Values'!S7-Spectra!W7)^2+('RGB Values'!T7-Spectra!X7)^2)^0.5","v":{"$error":"#DIV/0!"}}]
["Sample 7",{"$f":"(('RGB Values'!S8-Spectra!W8)^2+('RGB Values'!T8-Spectra!X8)^2)^0.5","v":{"$error":"#DIV/0!"}}]
["Sample 8",{"$f":"(('RGB Values'!S9-Spectra!W9)^2+('RGB Values'!T9-Spectra!X9)^2)^0.5","v":{"$error":"#DIV/0!"}}]
["Sample 9",{"$f":"(('RGB Values'!S10-Spectra!W10)^2+('RGB Values'!T10-Spectra!X10)^2)^0.5","v":{"$error":"#DIV/0!"}}]
["Sample 10",{"$f":"(('RGB Values'!S11-Spectra!W11)^2+('RGB Values'!T11-Spectra!X11)^2)^0.5","v":{"$error":"#DIV/0!"}}]
["Sample 11",{"$f":"(('RGB Values'!S12-Spectra!W12)^2+('RGB Values'!T12-Spectra!X12)^2)^0.5","v":{"$error":"#DIV/0!"}}]
["Sample 12",{"$f":"(('RGB Values'!S13-Spectra!W13)^2+('RGB Values'!T13-Spectra!X13)^2)^0.5","v":{"$error":"#DIV/0!"}}]
["Sample 13",{"$f":"(('RGB Values'!S14-Spectra!W14)^2+('RGB Values'!T14-Spectra!X14)^2)^0.5","v":{"$error":"#DIV/0!"}}]